Cogmind - Beta 15 @@@ ROGUE MODE // 2025.05.06 @ 16:54:43 Player: Minty Result: Destroyed by 7W-THG(j) with Overtuned Pulse Rifle Performance ------------- Evolutions (0) 0 Regions Visited (5) 1000 Robots Destroyed (33) 165 Value Destroyed (752) 752 Prototype IDs (10) 200 Alien Tech Used (0) 0 Bonus (756) 756 TOTAL SCORE: 2873 Bonus ------- Registered with UFD 300 Met Optimus in HQ 500 Friendly Fire -44 Cogmind --------- Core Integrity 0/250 Matter 143/300 Energy 65/100 System Corruption 16% Temperature Cool (12) Movement Core (450) Ox8 Location -9/Scraptown Parts ------- > --- POWER (1) -------- (None) > --- PROPULSION (2) --- (None) > --- UTILITY (2) ------ Large Storage Unit > --- WEAPON (2) ------- System Spiker > --- INVENTORY (15) --- Improved Ion Engine Large Battery (200) High-capacity Matter Pod (200) Scrapoid Pod Heavy Explosive Trap Heavy Explosive Trap Heavy Explosive Trap Vortex Trap Vortex Trap Vortex Trap DRS Beacon (Ready) Peak State ------------ > --- POWER ------------ Improved Ion Engine > --- PROPULSION ------- Wheel Compact Wheel > --- UTILITY ---------- Large Storage Unit Reflective Plating > --- WEAPON ----------- Battle Cannon Battle Cannon > --- INVENTORY -------- Improved Ion Engine Large Battery High-capacity Matter Pod Scrapoid Pod Subdweller Shrapnel Launcher System Spiker Flamer Heavy Explosive Trap Heavy Explosive Trap Heavy Explosive Trap Vortex Trap Vortex Trap Vortex Trap DRS Beacon [Rating: 16] Favorites ----------- Power Improved Ion Engine Engine Improved Ion Engine Propulsion Light Treads Treads Light Treads Leg Aluminum Leg Wheel Compact Wheel Utility Large Storage Unit Device Sensor Array Storage Large Storage Unit Protection Reflective Plating Weapon Light EM Pulse Cannon Energy Cannon Light EM Pulse Cannon Ballistic Gun Light Assault Rifle Ballistic Cannon Battle Cannon Launcher Subdweller Shrapnel Launcher Special Weapon Flamer Build | -11 -10 -10 -10 -9 -9 ------- Run | Yrd Mat Min Sub Rec Scr Slots Evolved . | . . . . . . Power . | . . . . . . Propulsion . | . . . . . . Utility . | . . . . . . Weapon . | . . . . . . Parts Attached 28 | . 12 2 8 . 6 Power 3 | . 2 . . . 1 Engine 3 | . 2 . . . 1 Core . | . . . . . . Reactor . | . . . . . . Propulsion 7 | . 3 1 2 . 1 Treads 4 | . 3 1 . . . Leg . | . . . . . . Wheel 3 | . . . 2 . 1 Hover . | . . . . . . Flight . | . . . . . . Utility 4 | . 3 . . . 1 Device 1 | . 1 . . . . Storage 2 | . 2 . . . . Processor . | . . . . . . Hackware . | . . . . . . Protection 1 | . . . . . 1 Artifact . | . . . . . . Weapon 14 | . 4 1 6 . 3 Energy Gun . | . . . . . . Energy Cannon 7 | . 4 1 1 . 1 Ballistic Gun . | . . . . . . Ballistic Cannon 3 | . . . 2 . 1 Launcher 2 | . . . 2 . . Special Weapon 2 | . . . 1 . 1 Impact Weapon . | . . . . . . Slashing Weapon . | . . . . . . Piercing Weapon . | . . . . . . Special Melee Weapon . | . . . . . . Unidentified Prototypes . | . . . . . . Corrupted Parts 1 | . . . . . 1 System Corruption 5 | . . . . . 5 Parts Lost 13 | . . 1 5 . 7 Power 1 | . . . . . 1 Propulsion 4 | . . . 2 . 2 Utility 1 | . . . . . 1 Weapon 7 | . . 1 3 . 3 Highest Loss Streak 7 | . . 1 3 . 7 To Critical Strikes . | . . . . . . Average Backups 10 | 6 8 13 10 10 9 Power 1 | 1 1 2 2 2 1 Propulsion . | 4 1 1 . . . Utility 2 | . . 5 2 2 2 Weapon 4 | 1 3 4 4 6 5 Tool/Special . | . . . . . . Unused Backups 23 | . 8 2 3 . 10 Power 3 | . 2 . . . 1 Propulsion 3 | . 3 . . . . Utility 10 | . . 2 3 . 5 Weapon 6 | . 3 . . . 3 Tool/Special 1 | . . . . . 1 Average Slot Usage (%) 97 | . 94 99 97 100 97 Engine 13 | . 14 14 14 14 13 Treads 16 | . 25 28 21 . . Wheel 10 | . . . 5 28 27 Device 9 | . 9 14 14 14 2 Storage 14 | . 14 14 14 14 14 Protection 3 | . . . . . 11 Energy Cannon 17 | . 25 27 24 . . Ballistic Cannon 9 | . . . 2 28 26 Peak Build Rating 16 | 6 11 12 13 13 16 Average Rating 12 | 6 10 11 11 13 14 On Entrance 10 | 6 6 11 12 13 13 Naked Turns . | . . . . . . Heaviest Build 42 | 11 36 36 40 34 42 Greatest Support 40 | 20 40 40 40 36 36 Greatest Overweight (x) 3 | . . . 2 . 3 Average Overweight (x) . | . . . . . . Largest Inventory Capacity 15 | 8 15 15 15 15 15 Average Capacity 14 | 8 8 15 15 15 15 Most Carried 15 | 6 13 15 15 13 15 Average Carried 13 | 6 8 14 13 13 14 Final Capacity 15 | 8 15 15 15 15 15 Final Carried 15 | 6 13 15 13 13 12 Class Distribution -------------------- 100% | Mutant Dominant Class ---------------- Mutant | -10/Materials Mutant | -10/Mines Mutant | -10/Subcaves Mutant | -9/Recycling Mutant | -9/Scraptown Resources | -11 -10 -10 -10 -9 -9 ----------- Run | Yrd Mat Min Sub Rec Scr Matter Collected 1184 | 167 133 221 231 . 432 Remotely . | . . . . . . Salvage Created 973 | . 258 139 443 . 133 Parts 73 | . 16 14 37 . 6 Haulers Intercepted 2 | . 2 . . . . Recyclers Shooed 1 | . 1 . . . . Parts Field Recycled . | . . . . . . Retrieved Matter . | . . . . . . Parts Self-Destructed 10 | . . . 10 . . Prevented 4 | . . . 4 . . Kills | -11 -10 -10 -10 -9 -9 ------- Run | Yrd Mat Min Sub Rec Scr Combat Hostiles Destroyed 26 | . 7 5 12 . 2 Melee 1 | . . 1 . . . Cannons 16 | . 7 3 4 . 2 AOE 7 | . . . 7 . . Classes Destroyed 10 | . 4 1 4 . 1 Worker 2 | . 1 1 . . . Tunneler 1 | . . 1 . . . Hauler 2 | . 2 . . . . Turret 2 | . . . 2 . . Swarmer 14 | . 6 3 5 . . Grunt 5 | . 1 2 2 . . Sentry 1 | . . . 1 . . Subdweller 4 | . . . 4 . . Scientist 1 | . . . 1 . . Scrapper 2 | . . . . . 2 Best Kill Streak 6 | . 3 4 6 . 2 Combat Bots Only 4 | . 3 3 4 . 2 Max Kills in Single Turn 4 | . 2 1 4 . 1 Gunslinging . | . . . . . . Exploded 4 | . . . 4 . . Melee 1 | . . 1 . . . Uniques/NPCs Destroyed . | . . . . . . Combat | -11 -10 -10 -10 -9 -9 -------- Run | Yrd Mat Min Sub Rec Scr Hostile Shots Fired 174 | . 61 18 48 . 47 Missed 50 | . 14 6 19 . 11 Hits 124 | . 47 12 29 . 36 Melee 4 | . . . . . 4 Projectile 120 | . 47 12 29 . 32 Critical Strikes 7 | . 3 . 1 . 3 Damage Taken 1914 | . 380 126 650 . 758 Core 268 | . 36 10 55 . 167 Absorbed by Shields . | . . . . . . Ignored by Resistances 63 | . . . . . 63 Core Remaining (%) 100 | 100 . . . . . Volleys Fired 96 | . 25 13 39 . 19 Largest 2 | . 2 2 2 . 2 Hottest 130 | . 112 112 112 . 130 Shots Fired 176 | . 47 26 73 . 30 Gun . | . . . . . . Cannon 162 | . 47 26 67 . 22 Launcher 10 | . . . 6 . 4 Special 4 | . . . . . 4 Kinetic 49 | . . . 23 . 26 Thermal 1 | . . . . . 1 Explosive 1 | . . . 1 . . Electromagnetic 122 | . 47 26 49 . . Robot Hit Streak 16 | . 15 4 16 . 5 Robot Miss Streak 6 | . 2 2 2 . 6 Penetration Max . | . . . . . . Secondary Targets . | . . . . . . Shots Hit Robots 93 | . 27 13 40 . 13 Core Hits 46 | . 12 6 24 . 4 Critical Kills . | . . . . . . Critical Parts Destroyed . | . . . . . . Critical Strikes 3 | . . . 2 . 1 Blast 3 | . . . 2 . 1 Melee Attacks . | . . . . . . Impact . | . . . . . . Slashing . | . . . . . . Piercing . | . . . . . . Sneak Attacks . | . . . . . . Combat Hostiles . | . . . . . . Follow-up Attacks . | . . . . . . Damage Inflicted 2937 | . 885 330 1389 . 333 Guns . | . . . . . . Cannons 1884 | . 697 297 712 . 178 Explosions 947 | . 126 . 677 . 144 Melee . | . . . . . . Ramming 95 | . 62 33 . . . Kinetic 1154 | . . . 832 . 322 Thermal 137 | . 126 . . . 11 Explosive 127 | . . . 127 . . Electromagnetic 1424 | . 697 297 430 . . Impact . | . . . . . . Slashing . | . . . . . . Piercing . | . . . . . . Highest Corruption 16 | . . . . . 16 Average Corruption 14 | . . . . . 14 Corruption Purged . | . . . . . . Corruption Blocked . | . . . . . . Effects 1 | . . . . . 1 Matter Fused 1 | . . . . . 1 Overload Shots . | . . . . . . Overflow Damage 83 | . 18 . 33 . 32 Projectiles 50 | . 18 . . . 32 Explosions 33 | . . . 33 . . Melee . | . . . . . . Knockbacks 3 | . . . 2 . 1 Impact . | . . . . . . Kinetic 3 | . . . 2 . 1 Secondary . | . . . . . . Self-Inflicted Damage 37 | . . . 37 . . Shots 1 | . . . 1 . . Rammed 23 | . 18 5 . . . Targets Rammed 26 | . 19 7 . . . Kicked . | . . . . . . Crushed 3 | . 1 2 . . . Highest Temperature 252 | . 181 252 47 . 211 Average Temperature 76 | . 62 95 19 . 94 Received Heat Transfer 625 | . . 42 165 . 418 Siege Activations . | . . . . . . Martial Activations . | . . . . . . Shielding Activations . | . . . . . . Robots Disrupted . | . . . . . . Combat Hostiles . | . . . . . . Robots Corrupted 2 | . . 1 1 . . Combat Hostiles 2 | . . 1 1 . . Parts Fried 8 | . 2 1 5 . . Impact Corruptions . | . . . . . . Robots Melted . | . . . . . . Combat Hostiles . | . . . . . . Parts Melted 4 | . . . . . 4 Heat Transferred 280 | . 200 . . . 80 Parts Sabotaged . | . . . . . . Parts Stolen . | . . . . . . Parts Stripped . | . . . . . . Power Chain Reactions 2 | . 2 . . . . Alert | -11 -10 -10 -10 -9 -9 ------- Run | Yrd Mat Min Sub Rec Scr Maximum Alert Level . | . . . . . . Low Security (%) 100 | 100 100 100 . 100 . Level 1 . | . . . . . . Level 2 . | . . . . . . Level 3 . | . . . . . . Level 4 . | . . . . . . Level 5 . | . . . . . . High Security . | . . . . . . Max Security . | . . . . . . Peak Influence 97 | . 97 82 . 55 . Initial 55 | . . 15 . 55 . Average 33 | . 52 17 . 45 . Influence Increases 677 | . 279 188 210 . . Destroy 0b10 Robot/C 440 | . 140 100 200 . . Destroy 0b10 Robot/NC 25 | . 15 10 . . . Destroy Leader 54 | . 24 20 10 . . Disable Machine 60 | . 30 30 . . . Destroy Structure 23 | . 10 13 . . . Lose Combat Pursuer 75 | . 60 15 . . . Influence Decreases 677 | . 239 202 119 82 35 Entered New Map 136 | . . 25 14 62 35 Time Decay 527 | . 239 167 101 20 . Lost Part 14 | . . 10 4 . . Squads Dispatched 3 | . 3 . . . . Investigation 2 | . 2 . . . . Extermination . | . . . . . . Reinforcement 1 | . 1 . . . . Assault . | . . . . . . Garrison . | . . . . . . Intercept . | . . . . . . Searches Triggered . | . . . . . . Construction Impeded . | . . . . . . Haulers Reinforced . | . . . . . . Active Scanning Responses . | . . . . . . Cargo Convoy Interrupts . | . . . . . . Stealth | -11 -10 -10 -10 -9 -9 --------- Run | Yrd Mat Min Sub Rec Scr Distress Signals 3 | . 2 1 . . . Communications Jammed . | . . . . . . Distress Signals . | . . . . . . Times Spotted 54 | . 21 6 14 . 13 Peak Tracking Total 6 | . 4 2 6 . 5 Tactical Retreats 4 | . 3 1 . . . Traps | -11 -10 -10 -10 -9 -9 ------- Run | Yrd Mat Min Sub Rec Scr Traps Triggered 3 | . . . 3 . . Indirectly . | . . . . . . Trap Hack Attempts . | . . . . . . Triggered . | . . . . . . Disarmed . | . . . . . . Reprogrammed . | . . . . . . Reused . | . . . . . . Traps Extracted . | . . . . . . Installed 1 | . . 1 . . . Triggered . | . . . . . . Most Traps Carried 6 | . . 3 3 3 6 Machines | -11 -10 -10 -10 -9 -9 ---------- Run | Yrd Mat Min Sub Rec Scr Machines Disabled 9 | . 2 2 4 . 1 Max in Single Turn 4 | . 1 1 4 . 1 Machines Repaired . | . . . . . . Machines Dismantled . | . . . . . . Machines Sabotaged . | . . . . . . Overloaded Fab Kills . | . . . . . . Hacking | -11 -10 -10 -10 -9 -9 --------- Run | Yrd Mat Min Sub Rec Scr Machines Accessed 6 | . 3 1 1 . 1 Terminals 4 | . 3 1 . . . Fabricators . | . . . . . . Repair Stations . | . . . . . . Recycling Units . | . . . . . . Scanalyzers . | . . . . . . Garrison Access . | . . . . . . Total Hacks 19 | . 12 2 4 . 1 Successful 10 | . 3 2 4 . 1 Failed 8 | . 8 . . . . Catastrophic 3 | . 3 . . . . Database Lockouts 1 | . 1 . . . . Manual 7 | . 7 . . . . Terminals 14 | . 12 2 . . . Fabricators . | . . . . . . Repair Stations . | . . . . . . Recycling Units . | . . . . . . Scanalyzers . | . . . . . . Garrison Access . | . . . . . . Terminal Hacks 10 | . 3 2 4 . 1 Record 5 | . . 1 4 . . Prototype ID Bank 2 | . 2 . . . . Alert Level 1 | . 1 . . . . Zone Layout 1 | . . 1 . . . Proto ID Catalog 1 | . . . . . 1 Fabricator Hacks . | . . . . . . Repair Station Hacks . | . . . . . . Recycling Unit Hacks . | . . . . . . Scanalyzer . | . . . . . . Garrison Access Hacks . | . . . . . . Unauthorized Hacks . | . . . . . . Terminals . | . . . . . . Fabricators . | . . . . . . Repair Stations . | . . . . . . Recycling Units . | . . . . . . Scanalyzers . | . . . . . . Garrison Access . | . . . . . . Data Cores Recovered . | . . . . . . Used . | . . . . . . Hacking Detections 4 | . 3 1 . . . Full Trace Events 2 | . 2 . . . . Feedback Events . | . . . . . . Feedback Blocked . | . . . . . . Robot Schematics Acquired . | . . . . . . Robots Built . | . . . . . . Authchips . | . . . . . . Time . | . . . . . . Total Robot Build Rating . | . . . . . . Part Schematics Acquired . | . . . . . . Parts Built . | . . . . . . Authchips . | . . . . . . Time . | . . . . . . Total Part Build Rating . | . . . . . . Parts Repaired . | . . . . . . Time . | . . . . . . Parts Recycled . | . . . . . . Recycled Matter . | . . . . . . Retrieved Matter . | . . . . . . Retrieved Components . | . . . . . . Parts Scanalyzed . | . . . . . . Part Schematics Acquired . | . . . . . . Parts Damaged . | . . . . . . Bothacking | -11 -10 -10 -10 -9 -9 ------------ Run | Yrd Mat Min Sub Rec Scr Used RIF Installer . | . . . . . . Robots Hacked . | . . . . . . Non-combat . | . . . . . . Combat . | . . . . . . Robot Hacks Applied . | . . . . . . Relay Couplers Released . | . . . . . . Fabnet Peak Effective % . | . . . . . . Robots Rewired . | . . . . . . Allies Hacked . | . . . . . . Hacks Repelled . | . . . . . . Allies | -11 -10 -10 -10 -9 -9 -------- Run | Yrd Mat Min Sub Rec Scr Total Allies . | . . . . . . Largest Group . | . . . . . . Highest-Rated Group . | . . . . . . Highest-Rated Ally . | . . . . . . Total Orders . | . . . . . . Ally Attacks . | . . . . . . Total Damage . | . . . . . . Kills . | . . . . . . Allies Corrupted . | . . . . . . Allies Melted 5 | . . . . . 5 Intel | -11 -10 -10 -10 -9 -9 ------- Run | Yrd Mat Min Sub Rec Scr Active Infowar (turns) 3117 | . 435 779 1634 54 215 Sensors 3117 | . 435 779 1634 54 215 Robot Analysis Total . | . . . . . . Derelict Logs Recovered 3 | . . 1 . . 2 Drone Launches . | . . . . . . Drone Recoveries . | . . . . . . Exploration | -11 -10 -10 -10 -9 -9 ------------- Run | Yrd Mat Min Sub Rec Scr Turns Passed 4411 | 3 654 779 1634 54 1287 Spaces Moved 2631 | 3 320 442 985 52 829 Core . | . . . . . . Treads 1320 | . 283 442 595 . . Legs 40 | 3 37 . . . . Wheels 1271 | . . . 390 52 829 Hover . | . . . . . . Flight . | . . . . . . Fastest Speed 105 | 120 120 160 105 105 105 Average Speed 135 | 120 155 160 146 105 105 Slowest Speed 160 | 120 160 160 160 105 125 Overloaded Moves . | . . . . . . Propulsion Burnouts . | . . . . . . Robots Hopped . | . . . . . . Potential Cave-ins . | . . . . . . Cave-ins Triggered . | . . . . . . Exploration Rate (%) 38 | 2 52 80 37 9 49 Regions Visited 5 Branch Regions 4 Pre-discovered Areas . | . . . . . . Known Exits Taken 1 | . . . 1 . . Unknown Exits Taken 4 | 1 1 1 . 1 . Scrap Searched 11 | . . 1 6 . 4 Spaces Dug . | . . . . . . Terrain Destroyed 109 | . 8 13 62 . 26 Melee . | . . . . . . Projectile 1 | . . . . . 1 AOE 108 | . 8 13 62 . 25 Terrain Rammed . | . . . . . . Walls Destroyed . | . . . . . . Machines Disabled . | . . . . . . Actions | -11 -10 -10 -10 -9 -9 --------- Run | Yrd Mat Min Sub Rec Scr Total 3281 | 2 426 485 1099 51 1218 Wait 409 | . 24 11 56 . 318 Move 2626 | 2 319 441 984 51 829 Hop . | . . . . . . Pick Up 32 | . 13 6 3 . 10 Fast Attach 7 | . 1 . 4 . 2 Attach 9 | . 2 1 2 . 4 Detach 4 | . 1 . 1 . 2 Swap 25 | . 9 1 7 . 8 Drop 33 | . 13 4 3 . 13 Fire 96 | . 25 13 39 . 19 Melee . | . . . . . . Ram . | . . . . . . Kick . | . . . . . . Crush 26 | . 19 7 . . . Escape Stasis . | . . . . . . Rewire 13 | . . . . . 13 Trap 1 | . . 1 . . . Miscellaneous . | . . . . . . Route ------- -11/Scrapyard -10/Materials -10/Mines (discovered 2 exits: [*Mat] / *Sub) -10/Subcaves (discovered 3 exits: *Mat x2 / *Rec) -9/Recycling -9/Scraptown History --------- Turn | Location | Event 1 | -11/Scrapyard | Discovered new exit (range 1) 4 | -11/Scrapyard | Entered Materials 308 | -10/Materials | Build established: Mutant 398 | -10/Materials | Central database locked down 569 | -10/Materials | Discovered new exit (range 7) 658 | -10/Materials | Entered Mines 1088 | -10/Mines | Discovered new exit (range 11) 1298 | -10/Mines | Learned 4 Materials zone layouts 1299 | -10/Mines | Assembled infested the area 1322 | -10/Mines | Found a Scrap Suit stashed away for nefarious purposes 1328 | -10/Mines | Found Scrap Suit 1376 | -10/Mines | Found a hidden stash of uninstalled traps 1419 | -10/Mines | Discovered new exit (range 8) 1437 | -10/Mines | Entered Subcaves 1438 | -10/Subcaves | Approached by a straggling Scientist 1550 | -10/Subcaves | Discovered new exit (range 9) 1589 | -10/Subcaves | Visited Clippyterm 1593 | -10/Subcaves | Identified exit to Materials 1593 | -10/Subcaves | Identified exit to Recycling 1593 | -10/Subcaves | Learned 40 Factory zone layouts 1773 | -10/Subcaves | Shifting Twisted Machinery released Riot Gun 1791 | -10/Subcaves | Shifting Twisted Machinery released Sub. Power Source 1869 | -10/Subcaves | Shifting Twisted Machinery released Sub. Laser 1887 | -10/Subcaves | Shifting Twisted Machinery released Sub. Machine Gun 2839 | -10/Subcaves | Ambushed by Subdwellers from Twisted Machinery 2891 | -10/Subcaves | Lost 3 parts (1n2w) 3071 | -10/Subcaves | Entered Recycling 3100 | -9/Recycling | Scanned before Scraplab entrance 3115 | -9/Recycling | Entered Scraplab 3123 | -9/Recycling | Discovered new exit (range 2) 3125 | -9/Recycling | Entered Scraptown 3127 | -9/Scraptown | System corruption cleaned by C-Scrubber 3183 | -9/Scraptown | Heard Great Nut preacher, LISTEN AND RECITE! 3212 | -9/Scraptown | Scanned Subdweller tech in exchange for log data 3216 | -9/Scraptown | Learned Factory garrison access intel 3217 | -9/Scraptown | Learned Factory terminal intel 3268 | -9/Scraptown | Visited Bundlers 3409 | -9/Scraptown | Visited UFD Registry 3409 | -9/Scraptown | Registered with UFD as "Wireeater" 3419 | -9/Scraptown | Visited Spacefarers 3544 | -9/Scraptown | Visited Research Penetration Think Tank 3568 | -9/Scraptown | Visited Curators Association 3630 | -9/Scraptown | Visited Modified Component R&D 3683 | -9/Scraptown | Visited Scrap Suit Storage 3710 | -9/Scraptown | Visited Scrapoid Pod Storage 3716 | -9/Scraptown | Found Scrapoid Pod 3739 | -9/Scraptown | Visited Chapter 10 3760 | -9/Scraptown | Visited Derelict Rescue Squad 3767 | -9/Scraptown | Found DRS Beacon 3807 | -9/Scraptown | Visited Science Guys 3888 | -9/Scraptown | Met Optimus 3888 | -9/Scraptown | Accepted into 0bPrime 4288 | -9/Scraptown | Civil war broke out across Scraptown 4293 | -9/Scraptown | Found System Spiker 4341 | -9/Scraptown | Lost 3 allies 4351 | -9/Scraptown | Core integrity fell below 50% 4388 | -9/Scraptown | Core integrity fell below 20% 4396 | -9/Scraptown | System corruption reached 10% 4412 | -9/Scraptown | Destroyed by 7W-THG(j) with Overtuned Pulse Rifle Last Messages --------------- 04383_ Critical hit (Burn: +50). 04384_ Reflective Plating destroyed. 04386_ GC-R6F(j) heat spikes uncontrollably. 04386_ 7W-THG(j) misfires. 04386_ FS-5AE(j) destroyed. 04387_ Acquired Sub. Shrapnel Launcher. 04387_ Wheel destroyed. 04390_ M2-74P(j) slows to a halt. 04390_ 7W-THG(j) slows to a halt. 04390_ GC-R6F(j) slows to a halt. 04395_ 55-6N7(x) slows to a halt. 04395_ SYS_ERR_328975498362890465 04396_ System corrupted: Matter fused (-6). 04398_ Attempting to rewire 55-6N7(x). 04408_ M2-74P(j) reactivates. 04408_ Imp. Ion Engine destroyed. 04409_ Attempting to rewire 55-6N7(x). 04410_ 55-6N7(x) destroyed. 04411_ Sub. Shrapnel Launcher destroyed. 04412_ 7W-THG(j) reactivates. Map ----- +----------------------------------------------------+ | ?#" "## ! ! | | ?#" "## | | ?#" "## | | ##" | | "" """""""""""""""""""""""""""" "## | | "" """""""""""""""""""""""""""" "## !!!! | | "" ""###### ################"" "## #"""" | | "" ""# ##????????#"" "######## | | "" ""# X"#????????#"" "##"""""" | | "" ""# "" "" ##????????#"" "## """"" | | "" ""# "" "" X"#??????###"" "## " | | "" ""# " " ######### #"" "## " | | ##" "" "" " | | ?#"% "" "" "## | | ##"* ""# " " ######### #"" "## " | | ""# "" "" ""#??????###"" "## " """ | | ""# "" "" ##????????#"" "######## | | ""# X"#???###??#"" !"####?### | | ""# ###### ####"" == % ##"###"# | | ""###### ####;;;;;; ;## jj%! ["## "&" " | | """""""""""""" j=%!% ## """ " | | """""""""""""" ! [[! | | %= % !%"## | | [ ! ! ![!## | | ! ] %["## | | "# % !=@]* !=%## | | ?#" !** ![=*!% !![# """ " | | ?#"""""" """""""" !& ""!%/ % ## "]" " | | ?####### ###########%#####;;;; "#"###"# | | ??# "#??? =[[ # ; ; =%"###?### | | ??#" #?#" # ### !=" #????? | | ??# " "" ""#?#" " # # # #?# #??????? | | ??# " "" ""#?#"" """#= #! !#[!#?# #??????? | | ??#]/] ""#?# """# !#!=/#]!#?# #??????? | | ??#"" """"#?# " """########?##?# #??????? | | ??#"""" """#?#""" "?????????????? ??????? | | ??#"" ] "#??""" ?????????????? ???????? | | ??#"""" """#???"" ??????????????? ???????? | | ??#""" X """""#????? " ?????????????????????????? | | ??#"""""""""""#????? ""??????????????????????????? | | ??#############?????#????????????????????????????? | | ?????????????????????????????????????????????????? | | ?????????????????????????????????????????????????? | | ?????????????????????????????????????????????????? | | ?????????????????????????????????????????????????? | | ?????????????????????????????????????????????????? | | ?????????????????????????????????????????????????? | | ?????????????????????????????????????????????????? | | ?????????????????????????????????????????????????? | | ?????????????????????????????????????????????????? | +----------------------------------------------------+ Best States ------------- Heat Dissipation 25 Energy Generation 12 Energy Capacity 265 Matter Stores 300 Matter Capacity 300 Sight Range 16 Robot Scan Range 14 Terrain Scan Density 10 Armor Coverage 150 Resistance: TH 10 Evasion (%) 55 Recoil Reduction 2 Item Schematics ----------------- None Robot Schematics ------------------ None Fabricated ------------ Nothing Repaired ---------- Nothing Alien Tech Used ----------------- None Achievements -------------- None Challenges ------------ None Game ------ Seed ComponentMasterMediator Manual? 0 Play Time 00:24:35 Cumulative 1018.3 hours Start 2025.05.06 @ 15:58:53 End 2025.05.06 @ 16:54:43 Sessions 3 Manual Loads 0 Difficulty Rogue Special Mode None Game No. 1244 Rogue 962 Adventurer 124 Explorer 158 Win Type - Total 44 Types 31/0/8/3/1/0/0/1/0/0 Lore% 90 Gallery% 85 Achievement% 79 Wizard Run 0 Options --------- Layout 0 ASCII 0 Keyboard 1 Movement Numpad Keybinds 0 Fullscreen 2 Font 18/X11 Map View 76x50 Zoom Use 0% Tactical HUD 1 Map Filters NONE Filters NONE Steam 1 RUN: 64479513-c336-4c7c-8a3f-0e183234f102